[Event "December 12 Late 2023"]
[Site "https://www.chess.com"]
[Date "2023.12.12"]
[Round "6"]
[White "Bortnyk, Olexandr"]
[Black "Ghasi, Ameet K"]
[Result "1-0"]
[Board "12"]
[TimeControl "180+1"]
[WhiteFideId "14120828"]
[BlackFideId "409200"]
[WhiteElo "2982"]
[BlackElo "2796"]
[WhiteTeam "UKR"]
[BlackTeam "ENG"]
[WhiteClock "0:00:44"]
[BlackClock "0:00:03"]

1. d4 {[%clk 0:03:00]}  Nf6 {[%clk 0:02:59]} 2. Nc3 {[%clk 0:03:00]}  d5 {[%clk 0:02:56]} 3. Bf4 {[%clk 0:03:00]}  c6 {[%clk 0:02:56]} 4. e3 {[%clk 0:03:01]}  g6 {[%clk 0:02:55]} 5. h4 {[%clk 0:03:00]}  h6 {[%clk 0:02:53]} 6. Nf3 {[%clk 0:03:00]}  Bg4 {[%clk 0:02:52]} 7. Qd2 {[%clk 0:02:59]}  Bxf3 {[%clk 0:02:46]} 8. gxf3 {[%clk 0:03:00]}  Nbd7 {[%clk 0:02:46]} 9. Bh3 {[%clk 0:03:01]}  e6 {[%clk 0:02:46]} 10. a3 {[%clk 0:02:59]}  a6 {[%clk 0:02:42]} 11. e4 {[%clk 0:02:59]}  Nh5 {[%clk 0:02:21]} 12. Be3 {[%clk 0:02:41]}  Qxh4 {[%clk 0:02:14]} 13. exd5 {[%clk 0:02:39]}  cxd5 {[%clk 0:02:13]} 14. Nxd5 {[%clk 0:02:39]}  Qd8 {[%clk 0:02:10]} 15. Nf4 {[%clk 0:02:34]}  Nxf4 {[%clk 0:02:07]} 16. Bxf4 {[%clk 0:02:35]}  Bg7 {[%clk 0:02:08]} 17. O-O-O {[%clk 0:02:32]}  Nb6 {[%clk 0:02:03]} 18. Kb1 {[%clk 0:02:06]}  Qd5 {[%clk 0:01:44]} 19. Qb4 {[%clk 0:01:57]}  Qb5 {[%clk 0:01:35]} 20. Qxb5+ {[%clk 0:01:54]}  axb5 {[%clk 0:01:36]} 21. Bf1 {[%clk 0:01:54]}  Nc4 {[%clk 0:01:36]} 22. Rd3 {[%clk 0:01:54]}  O-O-O {[%clk 0:01:24]} 23. Be3 {[%clk 0:01:47]}  Nxe3 {[%clk 0:00:46]} 24. fxe3 {[%clk 0:01:48]}  e5 {[%clk 0:00:47]} 25. d5 {[%clk 0:01:43]}  e4 {[%clk 0:00:44]} 26. fxe4 {[%clk 0:01:44]}  Rhe8 {[%clk 0:00:45]} 27. Bg2 {[%clk 0:01:43]}  Re5 {[%clk 0:00:37]} 28. Rf1 {[%clk 0:01:38]}  Re7 {[%clk 0:00:23]} 29. Rb3 {[%clk 0:01:38]}  Be5 {[%clk 0:00:17]} 30. Rxb5 {[%clk 0:01:37]}  h5 {[%clk 0:00:17]} 31. c4 {[%clk 0:01:36]}  g5 {[%clk 0:00:16]} 32. Rh1 {[%clk 0:01:34]}  Rh8 {[%clk 0:00:11]} 33. c5 {[%clk 0:01:19]}  f6 {[%clk 0:00:11]} 34. d6 {[%clk 0:01:09]}  Rg7 {[%clk 0:00:11]} 35. Bf1 {[%clk 0:01:00]}  g4 {[%clk 0:00:09]} 36. Bc4 {[%clk 0:01:01]}  g3 {[%clk 0:00:05]} 37. Be6+ {[%clk 0:00:54]}  Kd8 {[%clk 0:00:05]} 38. Rg1 {[%clk 0:00:43]}  h4 {[%clk 0:00:04]} 39. Bh3 {[%clk 0:00:43]}  Rg5 {[%clk 0:00:03]} 40. Rxb7 {[%clk 0:00:42]}  Bxd6 {[%clk 0:00:02]} 41. cxd6 {[%clk 0:00:43]}  Rc5 {[%clk 0:00:03]} 42. Rb8+ {[%clk 0:00:43]}  Rc8 {[%clk 0:00:03]} 43. Rxc8# {[%clk 0:00:44]} 1-0

[Event "December 12 Late 2023"]
[Site "https://www.chess.com"]
[Date "2023.12.12"]
[Round "6"]
[White "Khismatullin, Denis"]
[Black "Kozak, Antoni"]
[Result "1-0"]
[Board "13"]
[TimeControl "180+1"]
[WhiteFideId "4142578"]
[BlackFideId "21832030"]
[WhiteElo "2956"]
[BlackElo "2770"]
[WhiteTeam "RUS"]
[BlackTeam "POL"]
[WhiteClock "0:00:37"]
[BlackClock "0:00:17"]

1. e4 {[%clk 0:03:00]}  c5 {[%clk 0:02:54]} 2. Nf3 {[%clk 0:02:59]}  Nc6 {[%clk 0:02:54]} 3. Bb5 {[%clk 0:02:57]}  e6 {[%clk 0:02:54]} 4. O-O {[%clk 0:02:57]}  Nge7 {[%clk 0:02:54]} 5. Re1 {[%clk 0:02:57]}  Ng6 {[%clk 0:02:55]} 6. c3 {[%clk 0:02:53]}  d5 {[%clk 0:02:55]} 7. exd5 {[%clk 0:02:48]}  Qxd5 {[%clk 0:02:56]} 8. d4 {[%clk 0:02:46]}  cxd4 {[%clk 0:02:54]} 9. Nxd4 {[%clk 0:02:41]}  Bd7 {[%clk 0:02:53]} 10. Bf1 {[%clk 0:02:34]}  Nxd4 {[%clk 0:02:52]} 11. cxd4 {[%clk 0:02:34]}  Bb4 {[%clk 0:02:39]} 12. Nc3 {[%clk 0:02:34]}  Bxc3 {[%clk 0:02:40]} 13. bxc3 {[%clk 0:02:33]}  O-O {[%clk 0:02:40]} 14. c4 {[%clk 0:02:31]}  Qd6 {[%clk 0:02:39]} 15. a4 {[%clk 0:02:31]}  Rfd8 {[%clk 0:02:37]} 16. Bg5 {[%clk 0:02:25]}  Rdc8 {[%clk 0:02:31]} 17. a5 {[%clk 0:02:22]}  Bc6 {[%clk 0:02:24]} 18. f3 {[%clk 0:02:09]}  a6 {[%clk 0:02:20]} 19. Qd2 {[%clk 0:02:06]}  Re8 {[%clk 0:02:18]} 20. Rad1 {[%clk 0:01:57]}  h6 {[%clk 0:02:11]} 21. Be3 {[%clk 0:01:55]}  Rad8 {[%clk 0:02:07]} 22. Qc3 {[%clk 0:01:52]}  Qc7 {[%clk 0:02:00]} 23. d5 {[%clk 0:01:47]}  exd5 {[%clk 0:01:57]} 24. cxd5 {[%clk 0:01:36]}  Rd6 {[%clk 0:01:36]} 25. dxc6 {[%clk 0:01:29]}  Rxc6 {[%clk 0:01:35]} 26. Bb6 {[%clk 0:01:19]}  Rxe1 {[%clk 0:01:24]} 27. Qxe1 {[%clk 0:01:15]}  Qf4 {[%clk 0:01:18]} 28. Rd8+ {[%clk 0:01:12]}  Kh7 {[%clk 0:01:18]} 29. Qe8 {[%clk 0:01:11]}  Nh4 {[%clk 0:01:03]} 30. Qe4+ {[%clk 0:00:57]}  Qxe4 {[%clk 0:00:59]} 31. fxe4 {[%clk 0:00:58]}  Ng6 {[%clk 0:00:55]} 32. Rd7 {[%clk 0:00:58]}  Ne5 {[%clk 0:00:54]} 33. Rxb7 {[%clk 0:00:57]}  Rc1 {[%clk 0:00:54]} 34. Bd4 {[%clk 0:00:53]}  Ng4 {[%clk 0:00:26]} 35. Rxf7 {[%clk 0:00:50]}  Rd1 {[%clk 0:00:26]} 36. Rxg7+ {[%clk 0:00:49]}  Kh8 {[%clk 0:00:26]} 37. Rxg4+ {[%clk 0:00:42]}  Rxd4 {[%clk 0:00:24]} 38. Rg6 {[%clk 0:00:42]}  h5 {[%clk 0:00:23]} 39. Rxa6 {[%clk 0:00:43]}  h4 {[%clk 0:00:24]} 40. Rh6+ {[%clk 0:00:42]}  Kg7 {[%clk 0:00:23]} 41. Rxh4 {[%clk 0:00:43]}  Ra4 {[%clk 0:00:23]} 42. a6 {[%clk 0:00:43]}  Kg6 {[%clk 0:00:22]} 43. Rf4 {[%clk 0:00:43]}  Kg5 {[%clk 0:00:22]} 44. g3 {[%clk 0:00:43]}  Ra2 {[%clk 0:00:21]} 45. h4+ {[%clk 0:00:44]}  Kh5 {[%clk 0:00:21]} 46. e5 {[%clk 0:00:43]}  Kg6 {[%clk 0:00:21]} 47. e6 {[%clk 0:00:43]}  Ra3 {[%clk 0:00:19]} 48. Kf2 {[%clk 0:00:41]}  Ra5 {[%clk 0:00:19]} 49. e7 {[%clk 0:00:38]}  Re5 {[%clk 0:00:18]} 50. a7 {[%clk 0:00:38]}  Rxe7 {[%clk 0:00:17]} 51. a8=Q {[%clk 0:00:38]}  Kh6 {[%clk 0:00:17]} 52. Qh8+ {[%clk 0:00:37]}  Kg6 {[%clk 0:00:17]} 53. Rf6# {[%clk 0:00:37]} 1-0

[Event "December 12 Late 2023"]
[Site "https://www.chess.com"]
[Date "2023.12.12"]
[Round "6"]
[White "Bolourchifard, Farzad"]
[Black "Cordova, Emilio"]
[Result "0-1"]
[Board "15"]
[TimeControl "180+1"]
[WhiteFideId "12510084"]
[BlackFideId "3801497"]
[WhiteElo "2739"]
[BlackElo "2923"]
[WhiteTeam "IRI"]
[BlackTeam "PER"]
[WhiteClock "0:00:03"]
[BlackClock "0:00:36"]

1. d4 {[%clk 0:03:00]}  e6 {[%clk 0:02:59]} 2. Nf3 {[%clk 0:03:00]}  b6 {[%clk 0:02:59]} 3. c4 {[%clk 0:03:01]}  Bb7 {[%clk 0:02:59]} 4. Nc3 {[%clk 0:03:01]}  Bb4 {[%clk 0:02:59]} 5. Bd2 {[%clk 0:03:00]}  f5 {[%clk 0:02:58]} 6. e3 {[%clk 0:02:57]}  Nf6 {[%clk 0:02:59]} 7. Bd3 {[%clk 0:02:57]}  O-O {[%clk 0:02:58]} 8. Qc2 {[%clk 0:02:57]}  d6 {[%clk 0:02:53]} 9. a3 {[%clk 0:02:57]}  Bxc3 {[%clk 0:02:53]} 10. Bxc3 {[%clk 0:02:58]}  Ne4 {[%clk 0:02:51]} 11. Nd2 {[%clk 0:02:51]}  Nxd2 {[%clk 0:02:46]} 12. Qxd2 {[%clk 0:02:51]}  Bxg2 {[%clk 0:02:46]} 13. Rg1 {[%clk 0:02:51]}  Be4 {[%clk 0:02:42]} 14. Be2 {[%clk 0:02:24]}  f4 {[%clk 0:02:28]} 15. O-O-O {[%clk 0:02:21]}  f3 {[%clk 0:02:26]} 16. Bd3 {[%clk 0:02:11]}  Qh4 {[%clk 0:02:26]} 17. Rg3 {[%clk 0:01:47]}  Bxd3 {[%clk 0:02:22]} 18. Qxd3 {[%clk 0:01:46]}  d5 {[%clk 0:02:18]} 19. Rdg1 {[%clk 0:01:04]}  Rf7 {[%clk 0:02:18]} 20. cxd5 {[%clk 0:00:34]}  exd5 {[%clk 0:02:19]} 21. e4 {[%clk 0:00:20]}  Qxe4 {[%clk 0:02:17]} 22. Qxe4 {[%clk 0:00:17]}  dxe4 {[%clk 0:02:16]} 23. d5 {[%clk 0:00:16]}  g6 {[%clk 0:02:15]} 24. h4 {[%clk 0:00:17]}  Rf5 {[%clk 0:02:12]} 25. Re1 {[%clk 0:00:16]}  Nd7 {[%clk 0:02:07]} 26. Rxe4 {[%clk 0:00:17]}  Raf8 {[%clk 0:02:00]} 27. Re7 {[%clk 0:00:07]}  R8f7 {[%clk 0:02:00]} 28. Re8+ {[%clk 0:00:07]}  Nf8 {[%clk 0:02:00]} 29. Rd8 {[%clk 0:00:07]}  Rd7 {[%clk 0:01:56]} 30. Ra8 {[%clk 0:00:04]}  a5 {[%clk 0:01:56]} 31. h5 {[%clk 0:00:03]}  Kf7 {[%clk 0:01:53]} 32. hxg6+ {[%clk 0:00:03]}  Nxg6 {[%clk 0:01:50]} 33. Rh3 {[%clk 0:00:02]}  h5 {[%clk 0:01:50]} 34. Rg3 {[%clk 0:00:02]}  Rdxd5 {[%clk 0:01:49]} 35. Rc8 {[%clk 0:00:03]}  Rd7 {[%clk 0:01:46]} 36. Rh3 {[%clk 0:00:03]}  h4 {[%clk 0:01:46]} 37. Kc2 {[%clk 0:00:03]}  Rf4 {[%clk 0:01:34]} 38. a4 {[%clk 0:00:04]}  Ke6 {[%clk 0:01:29]} 39. Kb3 {[%clk 0:00:04]}  Kf5 {[%clk 0:01:29]} 40. Rg8 {[%clk 0:00:04]}  Rd6 {[%clk 0:01:20]} 41. Rh1 {[%clk 0:00:05]}  Rg4 {[%clk 0:01:09]} 42. Re1 {[%clk 0:00:04]}  Rg2 {[%clk 0:00:49]} 43. Rg7 {[%clk 0:00:03]}  Rxf2 {[%clk 0:00:47]} 44. Rf7+ {[%clk 0:00:03]}  Kg4 {[%clk 0:00:47]} 45. Re4+ {[%clk 0:00:04]}  Kh3 {[%clk 0:00:47]} 46. Be1 {[%clk 0:00:02]}  Rf1 {[%clk 0:00:42]} 47. Bxh4 {[%clk 0:00:03]}  Nxh4 {[%clk 0:00:42]} 48. Rh7 {[%clk 0:00:04]}  Kg3 {[%clk 0:00:39]} 49. Rexh4 {[%clk 0:00:04]}  Rg1 {[%clk 0:00:37]} 50. Rh3+ {[%clk 0:00:04]}  Kf2 {[%clk 0:00:37]} 51. Rf7 {[%clk 0:00:04]}  Rd3+ {[%clk 0:00:37]} 52. Kc4 {[%clk 0:00:04]}  Re3 {[%clk 0:00:36]} 53. Rxc7 {[%clk 0:00:03]}  Rc1+ {[%clk 0:00:36]} 0-1

[Event "December 12 Late 2023"]
[Site "https://www.chess.com"]
[Date "2023.12.12"]
[Round "6"]
[White "Rodrigue-Lemieux, Shawn"]
[Black "Osmak, Yuliia"]
[Result "1-0"]
[Board "21"]
[TimeControl "180+1"]
[WhiteFideId "2620049"]
[BlackFideId "14101602"]
[WhiteElo "2889"]
[BlackElo "2548"]
[WhiteTeam "CAN"]
[BlackTeam "UKR"]
[WhiteClock "0:00:15"]
[BlackClock "0:00:00"]

1. d4 {[%clk 0:03:00]}  Nf6 {[%clk 0:02:58]} 2. Nf3 {[%clk 0:02:59]}  e6 {[%clk 0:02:58]} 3. e3 {[%clk 0:03:00]}  d5 {[%clk 0:02:56]} 4. Bd3 {[%clk 0:03:01]}  b6 {[%clk 0:02:55]} 5. b3 {[%clk 0:02:57]}  Bb7 {[%clk 0:02:54]} 6. O-O {[%clk 0:02:55]}  Be7 {[%clk 0:02:47]} 7. Nbd2 {[%clk 0:02:55]}  O-O {[%clk 0:02:45]} 8. Bb2 {[%clk 0:02:56]}  Nbd7 {[%clk 0:02:40]} 9. Qe2 {[%clk 0:02:55]}  Ne4 {[%clk 0:02:35]} 10. c4 {[%clk 0:02:51]}  f5 {[%clk 0:02:18]} 11. Rac1 {[%clk 0:02:50]}  a5 {[%clk 0:02:01]} 12. cxd5 {[%clk 0:02:39]}  exd5 {[%clk 0:02:02]} 13. Bb5 {[%clk 0:02:39]}  Rf6 {[%clk 0:01:51]} 14. Ne5 {[%clk 0:02:32]}  Nxe5 {[%clk 0:01:46]} 15. dxe5 {[%clk 0:02:33]}  Rh6 {[%clk 0:01:44]} 16. Nxe4 {[%clk 0:02:21]}  fxe4 {[%clk 0:01:41]} 17. Qc2 {[%clk 0:01:39]}  c6 {[%clk 0:01:37]} 18. Be2 {[%clk 0:01:39]}  Qd7 {[%clk 0:01:30]} 19. f3 {[%clk 0:01:37]}  exf3 {[%clk 0:01:25]} 20. Rxf3 {[%clk 0:01:38]}  Rf8 {[%clk 0:01:21]} 21. Rxf8+ {[%clk 0:01:35]}  Bxf8 {[%clk 0:01:22]} 22. Rf1 {[%clk 0:01:36]}  Bc8 {[%clk 0:00:51]} 23. Rf4 {[%clk 0:01:22]}  Be7 {[%clk 0:00:46]} 24. Bg4 {[%clk 0:00:38]}  Qd8 {[%clk 0:00:46]} 25. e6 {[%clk 0:00:36]}  Bf6 {[%clk 0:00:04]} 26. Bxf6 {[%clk 0:00:30]}  Rxf6 {[%clk 0:00:04]} 27. Qxc6 {[%clk 0:00:29]}  Rxf4 {[%clk 0:00:02]} 28. exf4 {[%clk 0:00:30]}  d4 {[%clk 0:00:02]} 29. e7 {[%clk 0:00:25]}  Qxe7 {[%clk 0:00:02]} 30. Qxc8+ {[%clk 0:00:24]}  Kf7 {[%clk 0:00:03]} 31. Qc4+ {[%clk 0:00:21]}  Kf8 {[%clk 0:00:03]} 32. Qc8+ {[%clk 0:00:14]}  Kf7 {[%clk 0:00:00]} 33. Qf5+ {[%clk 0:00:15]} 1-0

[Event "December 12 Late 2023"]
[Site "https://www.chess.com"]
[Date "2023.12.12"]
[Round "6"]
[White "Korchynskyi, Mykola"]
[Black "Xiong, Jeffery"]
[Result "0-1"]
[Board "24"]
[TimeControl "180+1"]
[WhiteFideId "34138005"]
[BlackFideId "2047640"]
[WhiteElo "2542"]
[BlackElo "3028"]
[WhiteTeam "UKR"]
[BlackTeam "USA"]
[WhiteClock "0:00:00"]
[BlackClock "0:01:21"]

1. d4 {[%clk 0:03:00]}  b5 {[%clk 0:02:57]} 2. Nf3 {[%clk 0:02:57]}  Bb7 {[%clk 0:02:57]} 3. e3 {[%clk 0:02:57]}  a6 {[%clk 0:02:57]} 4. Be2 {[%clk 0:02:57]}  e6 {[%clk 0:02:58]} 5. O-O {[%clk 0:02:57]}  g5 {[%clk 0:02:58]} 6. b3 {[%clk 0:02:58]}  g4 {[%clk 0:02:58]} 7. Ne1 {[%clk 0:02:58]}  h5 {[%clk 0:02:58]} 8. Nd2 {[%clk 0:02:56]}  Nf6 {[%clk 0:02:58]} 9. Bb2 {[%clk 0:02:55]}  Bh6 {[%clk 0:02:55]} 10. c4 {[%clk 0:02:54]}  Rg8 {[%clk 0:02:55]} 11. Nc2 {[%clk 0:02:54]}  h4 {[%clk 0:02:54]} 12. f3 {[%clk 0:02:53]}  h3 {[%clk 0:02:51]} 13. g3 {[%clk 0:02:48]}  gxf3 {[%clk 0:02:50]} 14. Bxf3 {[%clk 0:02:49]}  Nc6 {[%clk 0:02:49]} 15. Qe2 {[%clk 0:02:45]}  d5 {[%clk 0:02:41]} 16. cxb5 {[%clk 0:02:29]}  axb5 {[%clk 0:02:41]} 17. Qxb5 {[%clk 0:02:27]}  Qc8 {[%clk 0:02:25]} 18. Bc3 {[%clk 0:01:38]}  Nd7 {[%clk 0:02:20]} 19. Bxd5 {[%clk 0:01:25]}  exd5 {[%clk 0:02:19]} 20. Qxd5 {[%clk 0:01:25]}  Nce5 {[%clk 0:02:15]} 21. Qb5 {[%clk 0:01:18]}  Ba6 {[%clk 0:02:14]} 22. Qd5 {[%clk 0:01:11]}  Bb7 {[%clk 0:02:14]} 23. Qb5 {[%clk 0:01:10]}  Ng4 {[%clk 0:02:10]} 24. Qf5 {[%clk 0:01:03]}  Ndf6 {[%clk 0:02:09]} 25. Qc5 {[%clk 0:00:46]}  Ra6 {[%clk 0:02:04]} 26. Rae1 {[%clk 0:00:45]}  Qd7 {[%clk 0:02:03]} 27. Nb4 {[%clk 0:00:43]}  Re6 {[%clk 0:02:03]} 28. Nc4 {[%clk 0:00:42]}  Bf8 {[%clk 0:02:02]} 29. Qa5 {[%clk 0:00:38]}  Bxb4 {[%clk 0:02:03]} 30. Bxb4 {[%clk 0:00:38]}  Qc6 {[%clk 0:02:03]} 31. e4 {[%clk 0:00:29]}  Nxe4 {[%clk 0:02:03]} 32. Rf5 {[%clk 0:00:15]}  Nxg3 {[%clk 0:02:02]} 33. d5 {[%clk 0:00:15]}  Rxe1+ {[%clk 0:01:40]} 34. Bxe1 {[%clk 0:00:16]}  Qd7 {[%clk 0:01:28]} 35. Rf4 {[%clk 0:00:04]}  Ne2+ {[%clk 0:01:28]} 36. Kf1 {[%clk 0:00:03]}  Nxf4 {[%clk 0:01:29]} 37. Bg3 {[%clk 0:00:03]}  Nxd5 {[%clk 0:01:28]} 38. Qc5 {[%clk 0:00:03]}  Qf5+ {[%clk 0:01:27]} 39. Ke1 {[%clk 0:00:03]}  Qb1+ {[%clk 0:01:26]} 40. Kd2 {[%clk 0:00:03]}  Qxa2+ {[%clk 0:01:26]} 41. Kc1 {[%clk 0:00:03]}  Qxb3 {[%clk 0:01:24]} 42. Bxc7 {[%clk 0:00:03]}  Qc3+ {[%clk 0:01:19]} 43. Kb1 {[%clk 0:00:02]}  Qb4+ {[%clk 0:01:20]} 44. Qxb4 {[%clk 0:00:02]}  Nxb4 {[%clk 0:01:21]} 45. Nd6+ {[%clk 0:00:00]}  Kd7 {[%clk 0:01:21]} 0-1

[Event "December 12 Late 2023"]
[Site "https://www.chess.com"]
[Date "2023.12.12"]
[Round "6"]
[White "Shuvalova, Polina"]
[Black "Indjic, Aleksandar"]
[Result "1-0"]
[Board "26"]
[TimeControl "180+1"]
[WhiteFideId "24171760"]
[BlackFideId "911925"]
[WhiteElo "2734"]
[BlackElo "2902"]
[WhiteTeam "RUS"]
[BlackTeam "SRB"]
[WhiteClock "0:00:23"]
[BlackClock "0:00:02"]

1. e4 {[%clk 0:03:00]}  c5 {[%clk 0:02:59]} 2. Nf3 {[%clk 0:03:01]}  a6 {[%clk 0:02:59]} 3. c3 {[%clk 0:03:01]}  d5 {[%clk 0:02:53]} 4. exd5 {[%clk 0:03:00]}  Qxd5 {[%clk 0:02:53]} 5. d4 {[%clk 0:03:00]}  e6 {[%clk 0:02:52]} 6. Be2 {[%clk 0:03:01]}  Nd7 {[%clk 0:02:50]} 7. O-O {[%clk 0:03:00]}  Ne7 {[%clk 0:02:50]} 8. c4 {[%clk 0:02:57]}  Qd6 {[%clk 0:02:46]} 9. Nc3 {[%clk 0:02:55]}  Nf5 {[%clk 0:02:42]} 10. d5 {[%clk 0:02:54]}  e5 {[%clk 0:02:41]} 11. Bd3 {[%clk 0:02:46]}  Nd4 {[%clk 0:02:40]} 12. Re1 {[%clk 0:02:42]}  Be7 {[%clk 0:02:39]} 13. Ne4 {[%clk 0:02:00]}  Qb6 {[%clk 0:02:36]} 14. Ng3 {[%clk 0:01:47]}  Nxf3+ {[%clk 0:02:01]} 15. Qxf3 {[%clk 0:01:46]}  g6 {[%clk 0:02:01]} 16. Bh6 {[%clk 0:01:44]}  Bf8 {[%clk 0:01:55]} 17. Qe3 {[%clk 0:01:23]}  Qxb2 {[%clk 0:01:53]} 18. Bxf8 {[%clk 0:01:19]}  Kxf8 {[%clk 0:01:54]} 19. Qh6+ {[%clk 0:01:08]}  Ke8 {[%clk 0:01:37]} 20. Rab1 {[%clk 0:01:07]}  Qd4 {[%clk 0:01:34]} 21. Rbd1 {[%clk 0:01:07]}  Qb2 {[%clk 0:01:23]} 22. Re2 {[%clk 0:01:00]}  Qd4 {[%clk 0:01:09]} 23. h4 {[%clk 0:00:54]}  Kd8 {[%clk 0:01:08]} 24. Qg7 {[%clk 0:00:46]}  Rf8 {[%clk 0:00:52]} 25. Ne4 {[%clk 0:00:44]}  h5 {[%clk 0:00:36]} 26. Red2 {[%clk 0:00:39]}  b5 {[%clk 0:00:21]} 27. cxb5 {[%clk 0:00:34]}  c4 {[%clk 0:00:21]} 28. Bc2 {[%clk 0:00:31]}  Qb6 {[%clk 0:00:21]} 29. d6 {[%clk 0:00:25]}  axb5 {[%clk 0:00:17]} 30. Ng5 {[%clk 0:00:24]}  Ke8 {[%clk 0:00:14]} 31. Bxg6 {[%clk 0:00:23]}  c3 {[%clk 0:00:02]} 32. Bxf7+ {[%clk 0:00:23]} 1-0

[Event "December 12 Late 2023"]
[Site "https://www.chess.com"]
[Date "2023.12.12"]
[Round "6"]
[White "Thomforde-Toates, Noah"]
[Black "Tari, Aryan"]
[Result "0-1"]
[Board "28"]
[TimeControl "180+1"]
[WhiteFideId "30951992"]
[BlackFideId "1510045"]
[WhiteElo "2692"]
[BlackElo "2863"]
[WhiteTeam "USA"]
[BlackTeam "NOR"]
[WhiteClock "0:00:08"]
[BlackClock "0:00:14"]

1. d4 {[%clk 0:03:00]}  Nf6 {[%clk 0:02:58]} 2. Nc3 {[%clk 0:03:01]}  d5 {[%clk 0:02:37]} 3. Bf4 {[%clk 0:02:59]}  g6 {[%clk 0:02:37]} 4. e3 {[%clk 0:02:58]}  Bg7 {[%clk 0:02:37]} 5. h4 {[%clk 0:02:58]}  h5 {[%clk 0:02:37]} 6. Nf3 {[%clk 0:02:57]}  O-O {[%clk 0:02:37]} 7. Ne5 {[%clk 0:02:57]}  c5 {[%clk 0:02:36]} 8. dxc5 {[%clk 0:02:57]}  Qa5 {[%clk 0:02:32]} 9. Qd2 {[%clk 0:02:57]}  Qxc5 {[%clk 0:02:30]} 10. Be2 {[%clk 0:02:57]}  Nc6 {[%clk 0:02:21]} 11. Rd1 {[%clk 0:02:48]}  a6 {[%clk 0:02:07]} 12. Bf3 {[%clk 0:02:29]}  Rd8 {[%clk 0:02:03]} 13. O-O {[%clk 0:02:24]}  Bf5 {[%clk 0:01:55]} 14. Nxc6 {[%clk 0:02:19]}  bxc6 {[%clk 0:01:52]} 15. Be5 {[%clk 0:02:18]}  Qb6 {[%clk 0:01:44]} 16. Na4 {[%clk 0:02:12]}  Qb5 {[%clk 0:01:38]} 17. b3 {[%clk 0:02:06]}  Ne4 {[%clk 0:01:26]} 18. Bxe4 {[%clk 0:01:52]}  Bxe5 {[%clk 0:01:26]} 19. Bxf5 {[%clk 0:01:50]}  gxf5 {[%clk 0:01:27]} 20. f4 {[%clk 0:01:44]}  Bf6 {[%clk 0:01:26]} 21. Qf2 {[%clk 0:01:44]}  e6 {[%clk 0:01:18]} 22. Qf3 {[%clk 0:01:42]}  Kg7 {[%clk 0:01:17]} 23. Rc1 {[%clk 0:01:35]}  Qb4 {[%clk 0:01:14]} 24. c4 {[%clk 0:01:33]}  Rh8 {[%clk 0:01:05]} 25. cxd5 {[%clk 0:01:31]}  cxd5 {[%clk 0:01:05]} 26. Rc7 {[%clk 0:01:30]}  Raf8 {[%clk 0:01:03]} 27. Rfc1 {[%clk 0:01:24]}  Kh6 {[%clk 0:01:02]} 28. Nc5 {[%clk 0:01:19]}  Bb2 {[%clk 0:00:49]} 29. Nd3 {[%clk 0:01:06]}  Qd2 {[%clk 0:00:49]} 30. Nxb2 {[%clk 0:01:00]}  Qxb2 {[%clk 0:00:50]} 31. R1c2 {[%clk 0:01:01]}  Qa1+ {[%clk 0:00:49]} 32. Kh2 {[%clk 0:01:00]}  Rhg8 {[%clk 0:00:46]} 33. Qf2 {[%clk 0:00:51]}  Rg4 {[%clk 0:00:42]} 34. Rd7 {[%clk 0:00:42]}  Qf6 {[%clk 0:00:34]} 35. g3 {[%clk 0:00:38]}  Rfg8 {[%clk 0:00:34]} 36. Rcc7 {[%clk 0:00:37]}  R8g7 {[%clk 0:00:35]} 37. Rc8 {[%clk 0:00:32]}  Kh7 {[%clk 0:00:26]} 38. Rdd8 {[%clk 0:00:30]}  Kg6 {[%clk 0:00:18]} 39. Rh8 {[%clk 0:00:26]}  Qa1 {[%clk 0:00:18]} 40. Qe2 {[%clk 0:00:21]}  a5 {[%clk 0:00:16]} 41. Rce8 {[%clk 0:00:19]}  Kf6 {[%clk 0:00:14]} 42. Rh6+ {[%clk 0:00:19]}  R7g6 {[%clk 0:00:14]} 43. Rxg6+ {[%clk 0:00:19]}  Kxg6 {[%clk 0:00:13]} 44. Rg8+ {[%clk 0:00:18]}  Kh6 {[%clk 0:00:13]} 45. Rxg4 {[%clk 0:00:18]}  hxg4 {[%clk 0:00:14]} 46. Qc2 {[%clk 0:00:18]}  Kh5 {[%clk 0:00:14]} 47. a4 {[%clk 0:00:16]}  Qe1 {[%clk 0:00:14]} 48. Qc8 {[%clk 0:00:11]}  Qf2+ {[%clk 0:00:13]} 49. Kh1 {[%clk 0:00:11]}  Qf1+ {[%clk 0:00:14]} 50. Kh2 {[%clk 0:00:12]}  Qh3+ {[%clk 0:00:15]} 51. Kg1 {[%clk 0:00:12]}  Qxg3+ {[%clk 0:00:16]} 52. Kf1 {[%clk 0:00:12]}  Qf3+ {[%clk 0:00:16]} 53. Ke1 {[%clk 0:00:13]}  Qxe3+ {[%clk 0:00:17]} 54. Kd1 {[%clk 0:00:13]}  Qxb3+ {[%clk 0:00:17]} 55. Kd2 {[%clk 0:00:13]}  Qb2+ {[%clk 0:00:16]} 56. Kd3 {[%clk 0:00:14]}  Qa3+ {[%clk 0:00:16]} 57. Kd2 {[%clk 0:00:14]}  Qb4+ {[%clk 0:00:17]} 58. Kd1 {[%clk 0:00:14]}  Qxf4 {[%clk 0:00:16]} 59. Qh8+ {[%clk 0:00:13]}  Qh6 {[%clk 0:00:17]} 60. Qg8 {[%clk 0:00:13]}  Kxh4 {[%clk 0:00:16]} 61. Qxf7 {[%clk 0:00:13]}  g3 {[%clk 0:00:16]} 62. Qe7+ {[%clk 0:00:12]}  Kg4 {[%clk 0:00:17]} 63. Qc5 {[%clk 0:00:12]}  g2 {[%clk 0:00:16]} 64. Ke2 {[%clk 0:00:12]}  Kh3 {[%clk 0:00:14]} 65. Qc3+ {[%clk 0:00:11]}  Kh2 {[%clk 0:00:14]} 66. Qe5+ {[%clk 0:00:08]}  f4 {[%clk 0:00:14]} 0-1